[Event "Portuguese Team Blitz-ch 2022"]
[Site "Viseu"]
[Date "2022.06.12"]
[Round "7.5"]
[White "Andias, Joao Pedro Menezes"]
[Black "Silva, Stephane"]
[Result "0-1"]
[ECO "B53"]
[WhiteElo "2064"]
[BlackElo "2020"]
[Annotator "TA"]
[PlyCount "94"]
[EventDate "2022.06.12"]
[EventType "team-tourn"]
[EventCountry "POR"]
[SourceTitle "playchess.com"]
[Source "ChessBase"]
[SourceQuality "1"]
[TimeControl "180+2"]

{[%evp 9,94,6,36,28,48,40,43,31,41,0,9,10,22,24,48,26,26,23,44,44,41,43,45,38,43,55,50,63,57,66,120,95,119,100,108,90,282,277,283,278,425,431,641,638,845,846,990,999,974,961,29979,29981,6216,5510,5510,1831,29981,993,889,660,622,-262,-250,-264,-6,-15,-4,-241,-54,-60,-12,-120,-124,-131,-131,-437,-382,-992,-767,-1022,-1009,-1035,-991,-1555,-1337,-29991,-29992]} 1. e4 c5 2. Nf3 d6 3. d4 cxd4 4. Qxd4 Nc6 5. Qe3 Nf6 6. Be2 {B53: Sicilian: 2...d6: Lines with Qxd4.} e6 7. O-O Be7 8. Rd1 {White is slightly better.} Qc7 9. h3 O-O 10. c4 b6 (10... d5 {is more complex.} 11. exd5 exd5 12. Nc3 dxc4 13. Bxc4 a6) 11. Nc3 a6 12. Rb1 Bb7 {[#]} 13. b4 $146 ({Predecessor:} 13. b3 Rad8 14. Bb2 Rfe8 15. Rbc1 Nb8 16. Nd4 Nbd7 17. f4 Bf8 18. Kh1 Qb8 19. Bf3 {1-0 (36) Ayyad,H (2176)-Mohtaat,H (1655) Baku 2016}) 13... Rac8 14. a3 Rfd8 15. Bb2 Nd7 16. Rbc1 {[%cal Oc3d5]} Qb8 17. Na4 Ba8 18. Rd2 Re8 19. Rcd1 {[%cal Oe4e5] Strongly threatening e5!} b5 (19... Bf8 $14) 20. cxb5 $40 {[%mdl 128] Black is in trouble.} axb5 21. Nc3 {[%cal Ba4c3,Bc3b5,Bb5d6][%mdl 32]} Na7 22. Nd4 e5 $2 (22... Nf6 $16 {was called for.}) 23. Ndxb5 $18 Nxb5 24. Nxb5 h6 (24... Rc6 {was worth a try.} 25. Qa7 Nb6 26. Qxb8 Rxb8 27. Nxd6 f6) 25. Nxd6 Bg5 (25... Bxd6 $142 26. Rxd6 Nf8) 26. Qb3 Nf6 27. Qxf7+ Kh7 28. Nxe8 Rxe8 {[#]} 29. Rd7 $1 Nxd7 (29... Rg8 30. Re7) 30. Rxd7 {[%csl Gd7][%cal Rf7g7]} Rg8 31. Qf5+ Kh8 32. Bc4 Rf8 33. Qg6 (33. Bxe5 $142 Rf6 34. Bxb8 Rxf5 35. exf5 Bc6 36. Rc7 Kh7 37. Rxc6 Bf6 38. Bf7) 33... Bf6 34. Bc1 {[%cal Oc1h6] [#] White wants to mate with Bxh6!} Qc8 35. Bb5 {[%mdl 8192]} Qxc1+ $19 36. Kh2 Qg5 $2 ({Black should play} 36... Qxa3 $19 37. Rf7 Qxb4) 37. Qxg5 $11 Bxg5 {[%cal Bf6g5,Bg5f4,Bf4d2,Bd2b4][%mdl 32]} 38. Bd3 $2 (38. f3 $11 {and White has nothing to worry.}) 38... Bc6 $2 (38... Rxf2 $19 {...Rd2 is the strong threat.} 39. Rc7 Bf4+ 40. Kg1 Rd2 41. Rc8+ Kh7 42. Rxa8 Rxd3) 39. Rc7 $15 Ba4 (39... Rd8 $1 $15 40. Bc2 Be8) 40. f3 (40. b5 $11 Rxf2 41. b6) 40... Bf4+ {This bishop pair is nice.} 41. Kg1 Rd8 42. Rc3 {[%mdl 8192]} (42. Bc2 $17 Be3+ 43. Kh2 Bf4+ 44. Kg1) 42... Bd2 43. Rc5 (43. Bc2 Bxc3 44. Bxa4) 43... Rxd3 44. Rc8+ Kh7 {Hoping for ...Bf4.} 45. Kf1 Rxa3 46. Ke2 Bxb4 {( -> ...Ra2+)} 47. Rc4 Bb5 {What a bad dream for White.  Weighted Error Value: White=0.08 (flawless) /Black=0.92} 0-1

[Event "Portuguese Team Blitz-ch 2022"]
[Site "Viseu"]
[Date "2022.06.12"]
[Round "7.6"]
[White "Ribeiro, Gustavo"]
[Black "Fernandes, Tiago Saraiva"]
[Result "1-0"]
[ECO "A43"]
[WhiteElo "1867"]
[BlackElo "1950"]
[Annotator "TA"]
[PlyCount "31"]
[EventDate "2022.06.12"]
[EventType "team-tourn"]
[EventCountry "POR"]
[SourceTitle "playchess.com"]
[Source "ChessBase"]
[SourceQuality "1"]
[TimeControl "180+2"]

{[%evp 13,31,45,42,44,99,78,141,141,180,154,339,204,413,412,404,360,777,798,1431,1400]} 1. d4 {[%emt 0:00:01]} c5 {[%emt 0:00:00]} 2. d5 {[%emt 0:00:02]} Nf6 {[%emt 0:00:01]} 3. Nc3 {[%emt 0:00:01]} d6 {[%emt 0:00:04]} 4. e4 {[%emt 0:00:02]} g6 {[%emt 0:00:01]} 5. Nf3 {[%emt 0:00:04]} Bg7 {[%emt 0:00:01]} 6. Be2 {[%emt 0:00:02]} O-O {[%emt 0:00:02]} 7. O-O {[%emt 0:00:01]} e6 {[%emt 0:00:26]} 8. a4 {[%emt 0:00:05] A43: Schmid Benoni.} e5 {[%emt 0:00:06]} (8... exd5 $14 9. exd5 Na6) 9. Nd2 {[%emt 0:00:05][%cal Bf3d2,Bd2c4,Bc4d6,Bd6f5][%mdl 32] [#] White is more active.} h5 $146 {[%emt 0:00:16]} (9... Nbd7 $142) ({Predecessor:} 9... Ne8 10. Nc4 Nd7 11. f4 exf4 12. Bxf4 Qe7 13. Bd3 g5 14. Bg3 Bd4+ 15. Kh1 Ne5 16. Nxe5 Bxe5 17. Bxe5 Qxe5 {½-½ (48) MacFarland,J (2200)-Chiku Ratte,O (2430) Colonie 2016}) 10. Nc4 $16 {[%emt 0:00:06] White is clearly better.} a6 {[%emt 0:00:35]} 11. f4 {[%emt 0:00:03]} Ng4 $2 {[%emt 0:00:41] [#]} (11... exf4 $16 12. Bxf4 Ne8) 12. h3 {[%emt 0:00:07]} Qh4 {[%emt 0:00:23]} (12... exf4 13. Bxf4 (13. Bxg4 hxg4 14. Bxf4 gxh3 $16) (13. hxg4 Bd4+ 14. Rf2 Qh4 $15) 13... Ne5) 13. f5 $18 {[%emt 0:01:16]} ({Less strong is} 13. hxg4 hxg4 14. Bxg4 (14. Nxd6 $2 {leads to mate.} g3 15. Rf3 Qh2+ 16. Kf1 Qh1#) 14... Bxg4 $16) 13... Nf6 {[%emt 0:00:16]} 14. Nxd6 {[%emt 0:00:06]} gxf5 $2 {[%emt 0:00:14]} (14... Rd8 15. Nxc8 Rxc8 16. fxg6 fxg6) 15. Rxf5 {[%emt 0:00:26]} Bxf5 {[%emt 0:00:03]} 16. Nxf5 {[%mdl 64] Trapped Piece. Black did not feel at home in the position after the opening.  Weighted Error Value: White=0.29 (precise) /Black=0.80} 1-0

[Event "Portuguese Team Blitz-ch 2022"]
[Site "Viseu"]
[Date "2022.06.12"]
[Round "7.7"]
[White "Santos, Ricardo"]
[Black "Carvalho, Vitor Hugo Pina Soar"]
[Result "1-0"]
[ECO "B27"]
[WhiteElo "2088"]
[BlackElo "1818"]
[Annotator "TA"]
[PlyCount "127"]
[EventDate "2022.06.12"]
[EventType "team-tourn"]
[EventCountry "POR"]
[SourceTitle "playchess.com"]
[Source "ChessBase"]
[SourceQuality "1"]
[TimeControl "180+2"]

{[%evp 10,126,3,7,2,-119,-106,-110,-95,-101,-98,-94,-109,-133,-140,-204,-210,-250,-256,-251,-192,-333,-327,-344,-343,-404,-403,-403,-398,-461,-387,-645,-583,-508,-308,-347,-60,-48,-40,-49,115,123,112,118,104,122,121,115,140,147,139,154,250,242,242,246,273,261,756,739,841,428,417,408,391,383,2264,2264,29963,29965,29965,29967,29966,29965,29964,29964,29966,29964,29954,29951,6837,6335,29976,29977,29977,29978,29978,29977,29977,29978,29978,29978,29978,29979,29982,29980,29987,29988,29988,29989,29989,29990,29991,29987,29997,29995,29995,29996,29996,29995,29997,29996,29996,29997,29997,29998,29998,29999,29999]} 1. e4 {[%emt 0:00:03]} c5 {[%emt 0:00:00]} 2. Nf3 {[%emt 0:00:01]} g6 {[%emt 0:00:01]} 3. d4 {[%emt 0:00:05]} cxd4 {[%emt 0:00:02]} 4. Nxd4 {[%emt 0:00:02]} Nc6 {[%emt 0:00:01]} 5. Bc4 {[%emt 0:00:04]} Bg7 {[%emt 0:00:01]} 6. Be3 {[%emt 0:00:03]} Nf6 {[%emt 0:00:02] [#] B34: Sicilian: Accelerated Dragon with 5 Nc3: sidelines.} 7. Bb3 $146 {[%emt 0:00:03]} (7. Nc3 $11) ({Predecessor:} 7. Nc3 d6 8. Be2 O-O 9. O-O Bd7 10. Qd2 Nxd4 11. Bxd4 Bc6 12. f3 a5 13. Rfd1 Nd7 14. Rac1 Bxd4+ {½-½ (14) Milos,G (2563)-Vescovi,G (2592) Sao Paulo 2006}) 7... Nxe4 $17 {[%emt 0:00:08]} 8. O-O {[%emt 0:00:03]} O-O {[%emt 0:00:06] Black is better.} 9. f3 {[%emt 0:00:09]} Nf6 {[%emt 0:00:08]} 10. c4 {[%emt 0:00:08]} d5 {[%emt 0:00:15]} 11. Bf2 {[%emt 0:00:29]} e5 {[%emt 0:00:15]} 12. Nb5 {[%emt 0:00:24] [#]} (12. Nxc6 $17 bxc6 13. cxd5 cxd5 14. Re1) 12... d4 $1 $19 {[%emt 0:00:25] Strongly threatening ...a6.} 13. Nd2 {[%emt 0:00:05]} a6 {[%emt 0:00:01]} 14. Na3 {[%emt 0:00:01]} Nb4 {[%emt 0:00:09]} 15. Rc1 {[%emt 0:00:44]} (15. Bh4 {was called for.}) 15... Nd3 {[%emt 0:00:03][%csl LRb2,LRc1]} 16. Rb1 {[%emt 0:00:17]} Bf5 {[%emt 0:00:11]} 17. Bc2 {[%emt 0:00:08]} Nxf2 {[%emt 0:00:03]} 18. Rxf2 {[%emt 0:00:03]} d3 {[%emt 0:00:18]} 19. Bb3 {[%emt 0:00:03]} h5 {[%emt 0:00:05] Against g4} 20. Rc1 $2 {[%emt 0:00:02]} (20. Kh1) 20... Re8 {[%emt 0:00:07] Threatens to win with ...e4.} 21. c5 {[%emt 0:00:09]} Be6 {[%emt 0:00:10]} 22. Nac4 {[%emt 0:00:08]} Nd5 $2 {[%emt 0:00:09]} (22... e4 $19 23. Nxe4 Nxe4 24. fxe4 Bd4) 23. Nd6 $15 {[%emt 0:00:06]} Re7 {[%emt 0:00:06]} 24. N2e4 {[%emt 0:00:09]} Ne3 $2 {[%emt 0:00:08]} (24... Nf4 $1 $15 {keeps the upper hand.} 25. Kh1 (25. Bxe6 Rxe6 26. Qb3 Rb8 $17) 25... Bh6) 25. Qxd3 $16 {[%emt 0:00:08]} Bxb3 {[%emt 0:00:02]} 26. Qxb3 {[%emt 0:00:03]} Nf5 {[%emt 0:00:16]} 27. Nxf5 {[%emt 0:00:03] White is much more active. The black rooks are badly placed.} gxf5 {[%emt 0:00:01]} 28. Nd6 {[%emt 0:00:01]} e4 {[%emt 0:00:03]} 29. Nxf5 {[%emt 0:00:05]} Bd4 {[%emt 0:00:10]} 30. Nxd4 {[%emt 0:00:02]} Qxd4 {[%emt 0:00:01]} (30... e3 $16 31. Re2 Qxd4) 31. Rd1 $18 {[%emt 0:00:02]} Qxc5 {[%emt 0:00:04]} 32. fxe4 {[%emt 0:00:01]} Rc8 {[%emt 0:00:12]} 33. Rd5 {[%emt 0:00:04]} Qc1+ {[%emt 0:00:02]} (33... Qc7 34. Rf1 h4 35. Rg5+ Kf8) 34. Rf1 {[%emt 0:00:00]} Qc4 {[%emt 0:00:10]} 35. Rd8+ {[%emt 0:00:05]} Kh7 {[%emt 0:00:07]} 36. Rxc8 {[%emt 0:00:03]} Qxc8 {[%emt 0:00:01]} 37. Rxf7+ {[%emt 0:00:01]} Rxf7 $2 {[%emt 0:00:01]} (37... Kh8 38. Rf5 (38. Rxe7 Qc5+ 39. Kf1 Qxe7 $18) 38... Qc1+ 39. Kf2 Qd2+ 40. Kf3 Kg7) 38. Qxf7+ {[%emt 0:00:02][%mdl 4096] Endgame KQ-KQ} Kh6 {[%emt 0:00:03]} 39. Qf6+ {[%emt 0:00:00]} Kh7 {[%emt 0:00:02]} 40. Qf5+ {[%emt 0:00:01]} Qxf5 {[%emt 0:00:01]} 41. exf5 {[%emt 0:00:01] KP-KP} Kg7 {[%emt 0:00:01]} 42. h3 {[%emt 0:00:02]} h4 {[%emt 0:00:03]} 43. Kf2 {[%emt 0:00:02]} Kf6 {[%emt 0:00:00]} 44. Ke3 {[%emt 0:00:03]} Kxf5 {[%emt 0:00:02]} 45. Kf3 {[%emt 0:00:01] [#] Black must now prevent g3.} a5 {[%emt 0:00:08]} 46. a4 {[%emt 0:00:04] White mates.} b6 {[%emt 0:00:06]} 47. b3 {[%emt 0:00:04]} Ke5 {[%emt 0:00:02]} 48. Kg4 {[%emt 0:00:01]} Kd4 {[%emt 0:00:01]} 49. Kxh4 {[%emt 0:00:00]} Kc3 {[%emt 0:00:01]} 50. Kg5 {[%emt 0:00:03]} Kxb3 {[%emt 0:00:01] K3P-KPP} 51. h4 {[%emt 0:00:01]} b5 {[%emt 0:00:01]} 52. h5 {[%emt 0:00:05]} bxa4 {[%emt 0:00:02] KPP-KPP} 53. h6 {[%emt 0:00:02]} a3 {[%emt 0:00:01]} 54. h7 {[%emt 0:00:00]} Kb2 {[%emt 0:00:04]} 55. h8=Q+ {[%emt 0:00:03]} Kb1 {[%emt 0:00:00]} 56. Qb8+ {[%emt 0:00:03]} Ka1 {[%emt 0:00:03]} 57. Kf4 {[%emt 0:00:05]} a4 {[%emt 0:00:04]} 58. Ke3 {[%emt 0:00:01]} a2 {[%emt 0:00:01]} 59. Kd3 {[%emt 0:00:05]} a3 {[%emt 0:00:02]} 60. Qe5+ {[%emt 0:00:02]} Kb1 {[%emt 0:00:01]} 61. Qe1+ {[%emt 0:00:03]} Kb2 {[%emt 0:00:02]} 62. Qc3+ {[%emt 0:00:02]} Kb1 {[%emt 0:00:01]} 63. Qc2+ {[%emt 0:00:01]} Ka1 {[%emt 0:00:02]} 64. Qc1# {[%emt 0:00:01] Quite a comeback for White.  Weighted Error Value: White=0.34/Black=0.64} 1-0